bitfinex/quotes_BTCUSD_20240613
["timestamp","ask_amount","ask_price","bid_price","bid_amount"]
[1718238038585,0.1735571,68072.0,68071.0,0.05]
[1718238038835,0.1565571,68072.0,68071.0,0.24215996]
[1718238039067,0.01223717,68072.0,68071.0,0.42776596]
[1718238039438,0.00086,68072.0,68071.0,0.42476596]
[1718238039838,0.01386,68072.0,68071.0,0.42476596]
[1718238040274,0.00386,68072.0,68071.0,0.42476596]
[1718238040703,0.01486,68072.0,68071.0,0.42476596]
[1718238041389,0.01486,68072.0,68071.0,0.43476596]
[1718238041942,0.01486,68072.0,68071.0,0.58856596]
[1718238041943,0.00086,68072.0,68071.0,0.58856596]
[1718238042398,0.01486,68072.0,68071.0,0.58856596]
[1718238043257,0.00086,68072.0,68071.0,0.58856596]
[1718238043670,0.01086,68072.0,68071.0,0.59156596]
[1718238044925,0.01086,68072.0,68071.0,0.84606596]
[1718238045900,0.01086,68072.0,68071.0,0.74606596]
[1718238046717,0.01086,68072.0,68071.0,0.84606596]
[1718238046920,0.01086,68072.0,68071.0,0.74606596]
[1718238047338,0.01086,68072.0,68071.0,0.84606596]
[1718238047810,0.01086,68072.0,68071.0,0.99038589]
[1718238047938,0.00086,68087.0,68071.0,0.99038589]
[1718238047939,0.00086,68087.0,68086.0,0.5098]
[1718238049351,0.01986,68087.0,68086.0,0.5098]
[1718238049656,0.00086,68087.0,68086.0,0.5098]
[1718238049954,0.00086,68087.0,68086.0,0.5108]
[1718238050169,0.00086,68087.0,68086.0,0.56188]
[1718238050375,0.01386,68087.0,68086.0,0.56188]
[1718238057011,0.00086,68091.0,68086.0,0.70619993]
[1718238057230,0.00086,68091.0,68090.0,0.83595996]
[1718238057427,0.00086,68091.0,68090.0,0.98027989]
[1718238057882,0.00086,68091.0,68090.0,1.28483204]
[1718238058294,0.00086,68091.0,68090.0,0.98027989]
[1718238058672,0.00086,68091.0,68090.0,1.284838]
[1718238058883,0.00086,68091.0,68090.0,1.343918]
[1718238059092,0.01386,68091.0,68090.0,1.03935989]
[1718238059352,0.01286,68091.0,68090.0,1.33591395]
[1718238059498,0.00186,68091.0,68090.0,1.34391395]
[1718238060043,0.00286,68091.0,68090.0,1.35691395]
[1718238063862,0.00286,68091.0,68090.0,1.30691395]
[1718238064231,0.00286,68091.0,68090.0,1.00235989]
[1718238064846,0.00186,68091.0,68090.0,0.98935989]
[1718238064992,0.00186,68091.0,68090.0,1.29391604]
[1718238065419,0.00186,68091.0,68090.0,1.29391599]
[1718238065615,0.00086,68091.0,68090.0,0.98135989]
[1718238065817,0.00086,68091.0,68090.0,1.10335989]
[1718238066065,0.00186,68091.0,68090.0,1.40791591]
[1718238066239,0.00186,68091.0,68090.0,1.90791591]
[1718238066471,0.00086,68099.0,68098.0,0.6345]
[1718238066615,0.00086,68099.0,68098.0,1.71973123]
[1718238067969,0.00086,68099.0,68098.0,1.56973123]
[1718238068199,0.00086,68099.0,68098.0,1.24333123]
[1718238068402,0.00086,68099.0,68098.0,1.24328267]
[1718238068811,0.00186,68099.0,68098.0,0.94677521]
[1718238069434,0.00186,68099.0,68098.0,1.04677521]
[1718238069641,0.00186,68099.0,68098.0,1.05577521]
[1718238069852,0.00186,68099.0,68098.0,0.95577521]
[1718238070055,0.00186,68099.0,68098.0,0.94677521]
[1718238071390,0.00186,68099.0,68098.0,0.95077521]
[1718238072310,0.00186,68099.0,68098.0,1.05077521]
[1718238073009,0.00186,68099.0,68098.0,0.95077521]
[1718238073642,0.00186,68099.0,68098.0,1.10077521]
[1718238074341,0.00186,68099.0,68098.0,1.40530044]
[1718238078215,0.00186,68099.0,68098.0,1.55530044]
[1718238078449,0.00186,68099.0,68098.0,1.59902339]
[1718238078872,0.00086,68118.0,68113.0,0.6644]
[1718238079076,0.00086,68118.0,68113.0,1.03619993]
[1718238079288,0.00086,68118.0,68113.0,1.13619993]
[1718238079500,0.00086,68118.0,68113.0,1.03619993]
[1718238080257,0.00086,68118.0,68113.0,1.13619993]
[1718238080459,0.00086,68118.0,68113.0,1.03619993]
[1718238080667,0.00086,68118.0,68113.0,1.04419993]
[1718238080668,0.00958,68114.0,68113.0,1.04419993]
[1718238083903,0.00958,68114.0,68113.0,0.49358]
[1718238084517,0.01620415,68114.0,68113.0,0.49358]
[1718238085327,0.01620415,68114.0,68113.0,0.96919993]
[1718238085601,0.00958,68114.0,68113.0,0.96919993]
[1718238085754,0.00958,68114.0,68113.0,1.27367127]
[1718238085970,0.00958,68114.0,68113.0,1.17367127]
[1718238086564,0.00958,68114.0,68113.0,0.79805134]
[1718238086765,0.00958,68114.0,68113.0,0.79805396]
[1718238087007,0.00958,68114.0,68113.0,0.49358]
[1718238087625,0.00958,68114.0,68113.0,0.79805501]
[1718238088050,0.00958,68114.0,68113.0,0.78805501]
[1718238088302,0.00958,68114.0,68113.0,0.32908]
[1718238088721,0.01620453,68114.0,68113.0,0.32908]
[1718238090044,0.01620453,68114.0,68113.0,0.278]
[1718238091048,0.01520453,68114.0,68113.0,0.27]
[1718238091260,0.01520453,68114.0,68113.0,0.271]
[1718238091674,0.01520453,68114.0,68113.0,0.27]
[1718238091929,0.02020453,68114.0,68113.0,0.27]
[1718238092346,0.02020453,68114.0,68113.0,0.304216]
[1718238092548,0.02020453,68114.0,68113.0,0.305216]
[1718238093216,0.02020453,68114.0,68113.0,0.304216]
[1718238093621,0.02020453,68114.0,68113.0,0.305216]
[1718238093846,0.02020453,68114.0,68113.0,0.315216]
[1718238094703,0.00858,68114.0,68113.0,0.315216]
[1718238095151,0.00858,68114.0,68113.0,0.420216]
[1718238095354,0.00858,68114.0,68113.0,0.574716]
[1718238095566,0.00858,68114.0,68113.0,0.87920188]
[1718238096014,0.00858,68114.0,68113.0,0.77820188]
[1718238096233,0.00858,68114.0,68113.0,0.473716]
[1718238096717,0.00858,68114.0,68113.0,0.468716]
[1718238096864,0.00858,68114.0,68113.0,0.473716]
[1718238097064,0.00858,68114.0,68113.0,0.577716]
[1718238097269,0.00858,68114.0,68113.0,0.87719741]
[1718238097509,0.00858,68114.0,68113.0,0.89119741]
[1718238097682,0.00958,68114.0,68113.0,0.89119741]
[1718238097921,0.00958,68114.0,68113.0,0.77319741]
[1718238098128,0.00958,68114.0,68113.0,0.93151734]
[1718238098129,0.01058,68114.0,68113.0,0.93151734]
[1718238098335,0.01058,68114.0,68113.0,0.83713593]
[1718238098531,0.01058,68114.0,68113.0,1.32011913]
[1718238099652,0.00858,68114.0,68113.0,1.31011913]
[1718238100046,0.00958,68114.0,68113.0,1.32411913]
[1718238100252,0.00958,68114.0,68113.0,1.31011913]
[1718238100687,0.01058,68114.0,68113.0,1.32011913]
[1718238101175,0.01058,68114.0,68113.0,1.32411913]
[1718238101393,0.00858,68114.0,68113.0,1.35385267]
[1718238101605,0.00858,68114.0,68113.0,1.48043192]
[1718238102020,0.00858,68114.0,68113.0,1.54624718]
[1718238102219,0.00858,68114.0,68113.0,1.5681856]
[1718238102419,0.00858,68114.0,68113.0,1.58976579]
[1718238102862,0.00958,68114.0,68113.0,1.60376579]
[1718238103091,0.00858,68114.0,68113.0,1.48011716]
[1718238103305,0.00858,68114.0,68113.0,1.58984952]
[1718238103527,0.00958,68114.0,68113.0,1.49411716]
[1718238103727,0.00958,68114.0,68113.0,1.47611716]
[1718238103968,0.00958,68114.0,68113.0,1.48411716]
[1718238104174,0.01058,68114.0,68113.0,1.60784952]
[1718238104379,0.00858,68114.0,68113.0,1.58584952]
[1718238104788,0.00958,68114.0,68113.0,1.59984952]
[1718238105884,0.00958,68114.0,68113.0,1.6078692]
[1718238106144,0.00958,68114.0,68113.0,1.5938692]
[1718238106345,0.00858,68114.0,68113.0,1.4858692]
[1718238106606,0.00958,68114.0,68113.0,1.39809681]
[1718238107122,0.00958,68114.0,68113.0,1.39009681]
[1718238107327,0.00858,68114.0,68113.0,1.37609681]
[1718238107582,0.00858,68114.0,68113.0,1.39009681]
[1718238107800,0.00958,68114.0,68113.0,1.39009681]
[1718238108018,0.00958,68114.0,68113.0,1.48209681]
[1718238109355,0.01058,68114.0,68113.0,1.49009681]
[1718238109557,0.01058,68114.0,68113.0,1.47609681]
[1718238109558,0.00858,68114.0,68113.0,1.47609681]
[1718238109782,0.00858,68114.0,68113.0,1.33209681]
[1718238109987,0.00958,68114.0,68113.0,1.34609681]
[1718238110207,0.00858,68114.0,68113.0,1.33209681]
[1718238110608,0.00958,68114.0,68113.0,1.34009681]
[1718238110774,0.00958,68114.0,68113.0,1.32609681]
[1718238110775,0.00858,68114.0,68113.0,1.32609681]
[1718238111166,0.00858,68114.0,68113.0,1.34509681]
[1718238111338,0.00958,68114.0,68113.0,1.34509681]
[1718238114700,0.00958,68114.0,68113.0,1.10649681]
[1718238116294,0.00958,68114.0,68113.0,1.2162692]
[1718238116521,0.00958,68114.0,68113.0,1.10649681]
[1718238116714,0.00958,68114.0,68113.0,0.323216]
[1718238116715,0.24488,68114.0,68113.0,0.323216]
[1718238117115,0.25164641,68114.0,68113.0,0.323216]
[1718238118720,0.25164641,68114.0,68113.0,0.318216]
[1718238118934,0.25064641,68114.0,68113.0,0.304216]
[1718238119327,0.25064641,68114.0,68113.0,0.308216]
[1718238119570,0.25064641,68114.0,68113.0,0.304216]
[1718238119978,0.25064641,68114.0,68113.0,0.306216]
[1718238120181,0.25064641,68114.0,68113.0,0.316216]
[1718238120623,0.25064641,68114.0,68113.0,0.317216]
[1718238120825,0.25064641,68114.0,68113.0,0.307216]
[1718238122685,0.25064641,68114.0,68113.0,0.273]
[1718238126993,0.25064641,68114.0,68113.0,0.283]
[1718238127203,0.01534641,68114.0,68113.0,0.85821993]
[1718238127392,0.00858,68114.0,68113.0,1.01511993]
[1718238127610,0.00858,68114.0,68113.0,1.29175268]
[1718238127810,0.00858,68114.0,68113.0,1.32435396]
[1718238128063,0.00858,68114.0,68113.0,1.39022715]
[1718238128312,0.00858,68114.0,68113.0,1.39022629]
[1718238128483,0.00858,68114.0,68113.0,1.56390394]
[1718238128680,0.00858,68114.0,68113.0,1.38750394]
[1718238128912,0.00858,68114.0,68113.0,1.38650394]
[1718238129115,0.00858,68114.0,68113.0,1.1529531]
[1718238129494,0.00958,68114.0,68113.0,1.1669531]
[1718238129676,0.00858,68114.0,68113.0,1.1529531]
[1718238129880,0.00858,68114.0,68113.0,1.41923842]
[1718238130081,0.00958,68114.0,68113.0,1.33323842]
[1718238130461,0.00858,68114.0,68113.0,1.21582233]
[1718238130829,0.00958,68114.0,68113.0,1.22282233]
[1718238131073,0.00958,68114.0,68113.0,1.21082233]
[1718238131682,0.00958,68114.0,68113.0,1.31082233]
[1718238132094,0.00958,68114.0,68113.0,1.41812722]
[1718238132305,0.00958,68114.0,68113.0,1.42312722]
[1718238132458,0.01058,68114.0,68113.0,1.43712722]
[1718238132660,0.00858,68114.0,68113.0,1.41812722]
[1718238132864,0.00858,68114.0,68113.0,1.40595815]
[1718238133069,0.00958,68114.0,68113.0,1.42295815]
[1718238133272,0.00958,68114.0,68113.0,1.40895815]
[1718238133472,0.00958,68114.0,68113.0,1.38399487]
[1718238133797,0.01058,68114.0,68113.0,1.40199487]
[1718238134008,0.00858,68114.0,68113.0,1.38799487]
[1718238134228,0.00858,68114.0,68113.0,1.40199487]
[1718238134376,0.00958,68114.0,68113.0,1.40199487]
[1718238134581,0.00958,68114.0,68113.0,1.22882075]
[1718238134986,0.00958,68114.0,68113.0,1.4026355]
[1718238135376,0.00958,68114.0,68113.0,1.4024827]
[1718238136015,0.00958,68114.0,68113.0,1.3984827]
[1718238136400,0.00858,68114.0,68113.0,1.32361505]
[1718238136650,0.00958,68114.0,68113.0,1.33761505]
[1718238136866,0.00958,68114.0,68113.0,1.33261505]
[1718238137060,0.00858,68114.0,68113.0,1.38891505]
[1718238137257,0.00958,68114.0,68113.0,1.40291505]
[1718238137461,0.00958,68114.0,68113.0,1.40891505]
[1718238137673,0.00858,68114.0,68113.0,1.39491505]
[1718238137881,0.00858,68114.0,68113.0,1.40291505]
[1718238138095,0.00958,68114.0,68113.0,1.46879464]
[1718238138344,0.00958,68114.0,68113.0,1.19665268]
[1718238138649,0.00958,68114.0,68113.0,1.40333594]
[1718238138986,0.00958,68114.0,68113.0,0.84163594]
[1718238139188,0.00958,68114.0,68113.0,0.91796365]
[1718238139394,0.00958,68114.0,68113.0,1.04375268]
[1718238139562,0.00958,68114.0,68113.0,1.07646862]
[1718238139767,0.00958,68114.0,68113.0,1.14235527]
[1718238141564,0.00958,68114.0,68113.0,1.24235527]
[1718238141975,0.00958,68114.0,68113.0,1.14235527]
[1718238147798,0.00958,68114.0,68113.0,1.24235527]
[1718238148018,0.00958,68114.0,68113.0,1.35148023]
[1718238148227,0.00958,68114.0,68113.0,0.9526603]
[1718238149084,0.00958,68114.0,68113.0,1.0185588]
[1718238149294,0.00958,68114.0,68113.0,0.9526603]
[1718238150863,0.00958,68114.0,68113.0,0.91994436]
[1718238151040,0.00958,68114.0,68113.0,0.9527039]
[1718238151878,0.00958,68114.0,68113.0,0.9622839]
[1718238152278,0.00958,68114.0,68113.0,1.0501291]
[1718238153068,0.00958,68114.0,68113.0,1.37864903]
[1718238153271,0.00958,68114.0,68113.0,1.44894903]
[1718238153689,0.00958,68114.0,68113.0,1.44783113]
[1718238155672,0.00958,68114.0,68113.0,1.35995566]
[1718238157485,0.00958,68114.0,68113.0,1.65425566]
[1718238158559,0.00958,68114.0,68113.0,1.55425566]
[1718238158755,0.00958,68114.0,68113.0,1.48395566]
[1718238158876,0.00958,68114.0,68113.0,1.18965566]
[1718238159089,0.00958,68114.0,68113.0,1.25995566]
[1718238160161,0.00958,68114.0,68113.0,1.34782726]
[1718238160512,0.00958,68114.0,68113.0,1.18965566]
[1718238160716,0.00958,68114.0,68113.0,1.25995566]
[1718238161854,0.00958,68114.0,68113.0,1.34782726]
[1718238164648,0.00958,68114.0,68113.0,1.34782653]
[1718238166477,0.00958,68114.0,68113.0,1.25995493]
[1718238166623,0.00958,68114.0,68113.0,1.49265493]
[1718238166877,0.00958,68114.0,68113.0,1.79265493]
[1718238167055,0.00958,68114.0,68113.0,1.81559429]
[1718238167259,0.00958,68114.0,68113.0,2.05554009]
[1718238167593,0.00958,68114.0,68113.0,1.81559429]
[1718238167792,0.00958,68114.0,68113.0,2.05554009]
[1718238168124,0.00858,68114.0,68113.0,2.04154009]
[1718238168320,0.00858,68114.0,68113.0,2.05943802]
[1718238168553,0.0762,68138.0,68113.0,2.05943802]
[1718238168554,0.00859,68164.0,68122.0,1.011795]
[1718238168765,0.24597,68145.0,68123.0,0.5845]
[1718238168992,0.24597,68145.0,68123.0,1.83978926]
[1718238169202,0.24597,68145.0,68123.0,1.85438926]
[1718238169411,0.24597,68145.0,68123.0,1.92454541]
[1718238169865,0.24597,68145.0,68123.0,1.70712497]
[1718238170276,0.24597,68145.0,68123.0,1.72112497]
[1718238170442,0.24597,68145.0,68123.0,1.70712497]
[1718238170693,0.24597,68145.0,68123.0,1.72112497]
[1718238170795,0.24597,68145.0,68123.0,1.73512497]
[1718238170998,0.24597,68145.0,68123.0,1.72112497]
[1718238171420,0.24597,68145.0,68123.0,1.73512497]
[1718238171846,0.24597,68145.0,68123.0,1.72112497]
[1718238172074,0.00857,68145.0,68130.0,1.3749]
[1718238172315,0.00857,68145.0,68130.0,2.23002497]
[1718238172538,0.00857,68145.0,68130.0,2.30218493]
[1718238172746,0.00857,68145.0,68130.0,2.52252587]
[1718238173898,0.00857,68145.0,68130.0,2.30218493]
[1718238174090,0.00857,68145.0,68130.0,2.52252587]
[1718238174293,0.00857,68145.0,68130.0,2.81482738]
[1718238174747,0.00857,68145.0,68130.0,2.78317839]
[1718238174960,0.00857,68145.0,68130.0,2.79717839]
[1718238175407,0.00857,68145.0,68130.0,2.30555151]
[1718238176102,0.00857,68145.0,68130.0,2.15632149]
[1718238176283,0.00857,68145.0,68130.0,2.30621027]
[1718238177115,0.00857,68145.0,68130.0,2.45298827]
[1718238177337,0.00857,68145.0,68130.0,2.47598827]
[1718238177556,0.00857,68145.0,68140.0,0.5845]
[1718238177749,0.00857,68145.0,68140.0,1.35230866]
[1718238178091,0.00857,68145.0,68140.0,1.40230866]
[1718238178326,0.00857,68145.0,68140.0,1.99608934]
[1718238178466,0.00857,68145.0,68140.0,1.99272857]
[1718238178844,0.00857,68145.0,68140.0,1.96346516]
[1718238179408,0.00857,68145.0,68140.0,1.84597257]
[1718238179608,0.00857,68145.0,68140.0,1.85997257]
[1718238179875,0.00857,68145.0,68140.0,1.82721303]
[1718238180149,0.00857,68145.0,68140.0,1.97516184]
[1718238180351,0.00857,68145.0,68140.0,1.77822717]
[1718238180508,0.00857,68145.0,68140.0,1.69233918]
[1718238180725,0.00857,68145.0,68140.0,1.53603918]
[1718238180938,0.00857,68145.0,68140.0,1.47827609]
[1718238181138,0.00857,68145.0,68140.0,1.41417609]
[1718238181556,0.00857,68145.0,68140.0,1.35375195]
[1718238181753,0.00857,68145.0,68140.0,1.41414277]
[1718238182829,0.00857,68145.0,68140.0,1.40014277]
[1718238182981,0.00857,68145.0,68140.0,1.41414277]
[1718238183663,0.00857,68145.0,68140.0,1.40014277]
[1718238183831,0.00857,68145.0,68140.0,1.41414277]
[1718238184195,0.00857,68145.0,68140.0,1.41408333]
[1718238185036,0.00857,68145.0,68140.0,1.49438333]
[1718238186739,0.00857,68145.0,68141.0,0.60391]
[1718238186962,0.00083805,68143.0,68142.0,0.839362]
[1718238187194,0.00083805,68143.0,68142.0,1.84043779]
[1718238187403,0.00083805,68143.0,68142.0,1.77596445]
[1718238187570,0.00083805,68143.0,68142.0,1.62921245]
[1718238188317,0.00083805,68143.0,68142.0,1.67174985]
[1718238188527,0.00083805,68143.0,68142.0,1.46663337]
[1718238188725,0.00083805,68143.0,68142.0,1.48063337]
[1718238189118,0.00083805,68143.0,68142.0,1.52432025]
[1718238189358,0.00083805,68143.0,68142.0,1.48063337]
[1718238189903,0.00083805,68143.0,68142.0,1.59462025]
[1718238190542,0.00083805,68143.0,68142.0,1.60862025]
[1718238192358,0.00083805,68143.0,68142.0,1.56493337]
[1718238192763,0.00083805,68143.0,68142.0,1.60862025]
[1718238193292,0.00083805,68143.0,68142.0,1.56493337]
[1718238193490,0.00083805,68143.0,68142.0,1.63162025]
[1718238193902,0.00083805,68143.0,68142.0,1.79253906]
[1718238194124,0.00857,68160.0,68155.0,0.6345]
[1718238194363,0.2296,68182.0,68167.0,0.6345]
[1718238194364,0.43295979,68173.0,68167.0,0.6345]
[1718238194553,0.2296,68182.0,68167.0,0.98161396]
[1718238194752,0.2296,68182.0,68167.0,1.46595033]
[1718238194966,0.2296,68182.0,68167.0,1.67018993]
[1718238195204,0.2296,68182.0,68181.0,0.5345]
[1718238195508,0.2296,68182.0,68181.0,0.64911993]
[1718238195757,0.2296,68182.0,68181.0,0.74763582]
[1718238196226,0.2296,68182.0,68181.0,0.30819121]
[1718238196427,0.2296,68182.0,68181.0,0.3403]
[1718238196760,0.2296,68182.0,68181.0,0.37533]
[1718238197290,0.2296,68182.0,68181.0,0.38533]
[1718238197495,0.2296,68182.0,68181.0,0.52964993]
[1718238197694,0.2296,68182.0,68181.0,0.52864993]
[1718238198079,0.23046,68182.0,68181.0,0.52864993]
[1718238198781,0.23046,68182.0,68181.0,0.53864993]
[1718238199663,0.23046,68182.0,68181.0,0.52864993]
[1718238200338,0.23046,68182.0,68181.0,0.31403]
[1718238200463,0.23046,68182.0,68181.0,0.38433]
[1718238200923,0.23046,68182.0,68181.0,0.3493]
[1718238202973,0.23046,68182.0,68181.0,0.279]
[1718238206602,0.23046,68182.0,68181.0,0.35115996]
[1718238206819,0.23046,68182.0,68181.0,0.36115996]
[1718238207445,0.00086,68182.0,68181.0,0.50547989]
[1718238207841,0.00086,68182.0,68181.0,0.49647989]
[1718238208026,0.00086,68182.0,68181.0,0.5598817]
[1718238208224,0.00086,68182.0,68181.0,0.5728817]
[1718238208430,0.00086,68182.0,68181.0,0.8113817]
[1718238208630,0.00086,68182.0,68181.0,1.16229432]
[1718238208843,0.00086,68182.0,68181.0,1.48644497]
[1718238209014,0.00086,68182.0,68181.0,1.47244497]
[1718238209220,0.00086,68182.0,68181.0,1.46644526]
[1718238209432,0.00086,68182.0,68181.0,1.51644526]
[1718238209623,0.00086,68182.0,68181.0,1.45693264]
[1718238210031,0.00086,68182.0,68181.0,2.13693264]
[1718238210231,0.00086,68182.0,68181.0,2.16634264]
[1718238210455,0.00086,68182.0,68181.0,2.23711135]
[1718238210688,0.00086,68182.0,68181.0,2.22311135]
[1718238210903,0.00086,68182.0,68181.0,2.24885526]
[1718238211209,0.00086,68182.0,68181.0,2.27685526]
[1718238211433,0.00086,68182.0,68181.0,2.26285526]
[1718238211633,0.00086,68182.0,68181.0,2.27685526]
[1718238211829,0.00086,68182.0,68181.0,2.26285526]
[1718238212269,0.00086,68182.0,68181.0,2.27685526]
[1718238212394,0.00086,68182.0,68181.0,2.15385526]
[1718238212637,0.00086,68182.0,68181.0,1.90845526]
[1718238212845,0.00086,68182.0,68181.0,1.61830432]
[1718238213044,0.00086,68182.0,68181.0,0.8587917]
[1718238213277,0.00086,68182.0,68181.0,0.9790917]
[1718238213418,0.00086,68182.0,68181.0,0.9456817]
[1718238213834,0.00086,68182.0,68181.0,0.9596817]
[1718238214044,0.00086,68182.0,68181.0,0.9456817]
[1718238214252,0.00086,68182.0,68181.0,0.9316817]
[1718238214474,0.00086,68182.0,68181.0,0.89927989]
[1718238214674,0.00086,68182.0,68181.0,0.88527989]
[1718238214899,0.00086,68182.0,68181.0,0.79097989]
[1718238215165,0.00086,68182.0,68181.0,0.81497989]
[1718238215454,0.00086,68182.0,68181.0,0.65847989]
[1718238215621,0.00086,68182.0,68181.0,0.71876115]
[1718238215832,0.00086,68182.0,68181.0,0.56876115]
[1718238216039,0.00086,68182.0,68181.0,0.42444122]
[1718238216455,0.00086,68182.0,68181.0,0.36415996]
[1718238216707,0.00086,68182.0,68181.0,0.42202596]
[1718238217076,0.00086,68182.0,68181.0,0.43202596]
[1718238218463,0.00086,68182.0,68181.0,0.73084589]
[1718238219459,0.00086,68182.0,68181.0,0.36415996]
[1718238219675,0.23676,68182.0,68181.0,0.36415996]
[1718238220439,0.23676,68182.0,68181.0,0.34415996]
[1718238220838,0.23676,68182.0,68181.0,0.19415996]
[1718238221593,0.23676,68182.0,68181.0,0.36415996]
[1718238221952,0.23676,68182.0,68181.0,0.19415996]
[1718238222569,0.23676,68182.0,68181.0,0.36415996]
[1718238225082,0.23676,68182.0,68181.0,0.19415996]
[1718238225296,0.23676,68182.0,68181.0,0.34415996]
[1718238225510,0.23676,68182.0,68181.0,0.19415996]
[1718238225714,0.23676,68182.0,68181.0,0.34415996]
[1718238225928,0.23676,68182.0,68181.0,0.19415996]
[1718238226143,0.23676,68182.0,68181.0,0.34415996]
[1718238227188,0.23676,68182.0,68181.0,0.19415996]
[1718238227397,0.23676,68182.0,68181.0,0.34415996]
[1718238229703,0.23676,68182.0,68181.0,0.19415996]
[1718238230280,0.23676,68182.0,68181.0,0.34415996]
[1718238230746,0.23676,68182.0,68181.0,0.36415996]
[1718238231365,0.23676,68182.0,68181.0,0.40057596]
[1718238233010,0.23676,68182.0,68181.0,0.34415996]
[1718238233806,0.23676,68182.0,68181.0,0.36415996]
[1718238234937,0.23676,68182.0,68181.0,0.172]
[1718238235929,0.23676,68182.0,68181.0,0.164]
[1718238236350,0.23676,68182.0,68181.0,0.15]
[1718238236800,0.23676,68182.0,68181.0,0.158]
[1718238238599,0.23676,68182.0,68181.0,0.258]
[1718238238931,0.23676,68182.0,68181.0,0.2858]
[1718238239729,0.23676,68182.0,68181.0,0.3058]
[1718238240588,0.23676,68182.0,68181.0,0.2858]
[1718238240802,0.00086,68182.0,68181.0,0.3058]
[1718238243003,0.00086,68182.0,68181.0,0.283]
[1718238243203,0.00086,68182.0,68181.0,0.275]
[1718238243354,0.23526,68182.0,68181.0,0.27]
[1718238243554,0.23526,68182.0,68181.0,0.264]
[1718238243781,0.23526,68182.0,68181.0,0.251]
[1718238244230,0.23526,68182.0,68181.0,0.11]
[1718238244403,0.23526,68182.0,68181.0,0.1]
[1718238244556,0.23526,68182.0,68181.0,0.25]
[1718238244779,0.23526,68182.0,68181.0,0.108]
[1718238245385,0.23526,68182.0,68181.0,0.258]
[1718238245593,0.23626,68182.0,68181.0,0.258]
[1718238248222,0.23626,68182.0,68181.0,0.158]
[1718238248875,0.23626,68182.0,68181.0,0.258]
[1718238249881,0.23626,68182.0,68181.0,0.278]
[1718238250088,0.23626,68182.0,68181.0,0.3058]
[1718238252520,0.23626,68182.0,68181.0,0.2858]
[1718238252971,0.23626,68182.0,68181.0,0.3058]
[1718238253582,0.23626,68182.0,68181.0,0.1358]
[1718238253781,0.23626,68182.0,68181.0,0.278]
[1718238254798,0.23626,68182.0,68181.0,0.108]
[1718238255015,0.23626,68182.0,68181.0,0.278]
[1718238255216,0.00186,68182.0,68181.0,0.278]
[1718238255628,0.00186,68182.0,68181.0,0.258]
[1718238255830,0.00186,68182.0,68181.0,0.2858]
[1718238256014,0.00186,68182.0,68181.0,0.3058]
[1718238256728,0.00186,68182.0,68181.0,0.1358]
[1718238256959,0.00186,68182.0,68181.0,0.278]
[1718238257407,0.00186,68182.0,68181.0,0.108]
[1718238259992,0.00186,68182.0,68181.0,0.258]
[1718238260595,0.00186,68182.0,68181.0,0.278]
[1718238261675,0.00186,68182.0,68181.0,0.258]
[1718238261874,0.23196,68182.0,68181.0,0.258]
[1718238262275,0.23196,68182.0,68181.0,0.208]
[1718238263072,0.23196,68182.0,68181.0,0.058]
[1718238263282,0.273564,68182.0,68181.0,0.058]
[1718238263485,0.23196,68182.0,68181.0,0.008]
[1718238264105,0.23196,68182.0,68180.0,0.05]
[1718238264327,0.2357,68181.0,68180.0,0.05]
[1718238265634,0.2357,68181.0,68180.0,0.051]
[1718238265841,0.2357,68181.0,68180.0,0.151]
[1718238266925,0.2357,68181.0,68180.0,0.2481]
[1718238267155,0.00186,68182.0,68181.0,0.05]
[1718238267156,0.00086,68182.0,68181.0,0.05]
[1718238267385,0.00086,68182.0,68181.0,0.22215996]
[1718238268458,0.00586,68182.0,68181.0,0.22315996]
[1718238269724,0.00586,68182.0,68181.0,0.24315996]
[1718238269932,0.00586,68182.0,68181.0,0.27747596]
[1718238270160,0.00586,68182.0,68181.0,0.24315996]
[1718238271098,0.00586,68182.0,68181.0,0.22315996]
[1718238272934,0.00586,68182.0,68181.0,0.24315996]
[1718238273142,0.00586,68182.0,68181.0,0.07315996]
[1718238273567,0.00586,68182.0,68181.0,0.17315996]
[1718238275686,0.00586,68182.0,68181.0,0.07315996]
[1718238276343,0.00586,68182.0,68181.0,0.17315996]
[1718238277191,0.00586,68182.0,68181.0,0.24315996]
[1718238278586,0.00586,68182.0,68181.0,0.001]
[1718238278787,0.00586,68182.0,68181.0,0.101]
[1718238278998,0.00586,68182.0,68181.0,0.17315996]
[1718238282033,0.07606,68182.0,68181.0,0.17315996]
[1718238285406,0.07606,68182.0,68181.0,0.07315996]
[1718238285606,0.07606,68182.0,68181.0,0.22315996]
[1718238287498,0.07606,68182.0,68181.0,0.12315996]
[1718238289273,0.07606,68182.0,68181.0,0.22315996]
[1718238296487,0.00586,68182.0,68181.0,0.22315996]
[1718238296645,0.07606,68182.0,68181.0,0.24315996]
[1718238297617,0.07606,68182.0,68181.0,0.22315996]
[1718238297753,0.07606,68182.0,68181.0,0.24315996]
[1718238299038,0.07606,68182.0,68181.0,0.22315996]
[1718238299252,0.07606,68182.0,68181.0,0.24315996]
[1718238299677,0.00586,68182.0,68181.0,0.60927596]
[1718238300120,0.00586,68182.0,68181.0,0.68947596]
[1718238300537,0.00586,68182.0,68181.0,1.03764875]
[1718238301042,0.00086,68182.0,68181.0,0.99267719]
[1718238301275,0.00086,68182.0,68181.0,1.00067719]
[1718238302100,0.00086,68182.0,68181.0,1.04463523]
[1718238302510,0.00286,68182.0,68181.0,0.69647596]
[1718238302930,0.00286,68182.0,68181.0,1.0006645]
[1718238303132,0.00286,68182.0,68181.0,0.9906645]
[1718238303342,0.00286,68182.0,68181.0,0.9204645]
[1718238303482,0.00286,68182.0,68181.0,0.62590248]
[1718238303913,0.00286,68182.0,68181.0,0.58195996]
[1718238307362,0.00286,68182.0,68181.0,0.43145996]
[1718238308832,0.00286,68182.0,68181.0,0.44145996]
[1718238309042,0.00286,68182.0,68181.0,0.6845651]
[1718238309222,0.00286,68182.0,68181.0,0.7547651]
[1718238310439,0.00286,68182.0,68181.0,0.7447651]